bitfinex-derivatives/quotes_BTCF0:USTF0_20251206
["timestamp","ask_amount","ask_price","bid_price","bid_amount"]
[1765000162568,0.40146,89610.0,89609.0,0.0553]
[1765000163255,0.40546,89610.0,89609.0,0.0553]
[1765000163455,0.40646,89610.0,89609.0,0.0553]
[1765000163666,0.40146,89610.0,89609.0,0.0553]
[1765000163973,0.40646,89610.0,89609.0,0.0553]
[1765000165869,0.02646,89610.0,89609.0,0.0553]
[1765000166071,0.20646,89610.0,89609.0,0.0553]
[1765000168963,0.20446,89610.0,89609.0,0.0553]
[1765000169970,0.20046,89610.0,89609.0,0.0553]
[1765000170164,0.20246,89610.0,89609.0,0.0553]
[1765000171068,0.01223,89610.0,89609.0,0.0553]
[1765000171269,0.002,89610.0,89609.0,0.13563401]
[1765000171972,0.01223,89610.0,89609.0,0.13563401]
[1765000173170,0.02246,89610.0,89609.0,0.13563401]
[1765000173472,0.002,89610.0,89609.0,0.13563401]
[1765000174973,0.002,89610.0,89609.0,0.0553]
[1765000179272,0.01223,89610.0,89609.0,0.0553]
[1765000179473,0.02246,89610.0,89609.0,0.0553]
[1765000180178,0.02046,89610.0,89609.0,0.0553]
[1765000182869,0.27046,89610.0,89609.0,0.0553]
[1765000183474,0.03178335,89623.0,89622.0,0.07124]
[1765000183675,0.46178335,89623.0,89622.0,0.07124]
[1765000183870,0.20062745,89623.0,89622.0,0.07124]
[1765000184281,0.39062745,89623.0,89622.0,0.07124]
[1765000184772,0.39162745,89623.0,89622.0,0.07124]
[1765000184968,0.39662745,89623.0,89622.0,0.07124]
[1765000185574,0.39462745,89623.0,89622.0,0.07124]
[1765000186285,0.39262745,89623.0,89622.0,0.07124]
[1765000187083,0.39162745,89623.0,89622.0,0.07124]
[1765000190383,0.02046,89620.0,89619.0,0.04408]
[1765000190583,0.45046,89620.0,89619.0,0.02844]
[1765000192991,0.45346,89620.0,89619.0,0.02844]
[1765000196591,0.45346,89620.0,89619.0,0.0556]
[1765000197392,0.45346,89620.0,89619.0,0.07255]
[1765000198590,0.45246,89620.0,89619.0,0.07255]
[1765000201190,0.0316165,89617.0,89616.0,0.08021018]
[1765000201487,0.3916165,89617.0,89616.0,0.08021018]
[1765000202085,0.3916165,89617.0,89607.0,0.11824803]
[1765000202086,0.011157,89613.0,89612.0,0.08021018]
[1765000202289,0.391617,89613.0,89612.0,0.08021018]
[1765000202494,0.391617,89613.0,89612.0,0.11003018]
[1765000203399,0.392617,89613.0,89612.0,0.11003018]
[1765000203599,0.392617,89613.0,89612.0,0.02982]
[1765000203786,0.392617,89613.0,89612.0,0.11010856]
[1765000203994,0.392617,89613.0,89612.0,0.02982]
[1765000204298,0.397617,89613.0,89612.0,0.02982]
[1765000204497,0.397617,89613.0,89612.0,0.05903]
[1765000205298,0.38646,89613.0,89612.0,0.07688]
[1765000206597,0.38646,89613.0,89612.0,0.15716046]
[1765000206798,0.38546,89613.0,89612.0,0.15716046]
[1765000206994,0.38646,89613.0,89612.0,0.15716046]
[1765000207799,0.38646,89613.0,89612.0,0.07688]
[1765000207994,0.38146,89613.0,89612.0,0.07688]
[1765000208197,0.38646,89613.0,89612.0,0.07688]
[1765000209003,0.38546,89613.0,89612.0,0.07688]
[1765000209203,0.38646,89613.0,89612.0,0.07688]
[1765000212508,0.366,89613.0,89612.0,0.07688]
[1765000212713,0.006,89613.0,89612.0,0.07688]
[1765000213214,0.01623,89613.0,89612.0,0.07688]
[1765000214301,0.01223,89613.0,89612.0,0.07688]
[1765000214608,0.01123,89613.0,89612.0,0.07688]
[1765000216115,0.001,89613.0,89612.0,0.07688]
[1765000217416,0.02062745,89623.0,89622.0,0.05903]
[1765000217715,0.38062745,89623.0,89622.0,0.05903]
[1765000218510,0.38162745,89623.0,89622.0,0.05903]
[1765000218709,0.38662745,89623.0,89622.0,0.05903]
[1765000220316,0.38662745,89623.0,89622.0,0.07688]
[1765000221513,0.42662745,89623.0,89622.0,0.07688]
[1765000222816,0.42362745,89623.0,89622.0,0.07688]
[1765000223916,0.42262745,89623.0,89622.0,0.07688]
[1765000230423,0.42262745,89623.0,89616.0,0.02825]
[1765000230424,0.02046,89617.0,89616.0,0.02825]
[1765000230614,0.02046,89615.0,89614.0,0.08026881]
[1765000230815,0.0316169,89614.0,89613.0,0.08026881]
[1765000231126,0.4116169,89614.0,89613.0,0.08026881]
[1765000231324,0.02046,89612.0,89611.0,0.13840881]
[1765000231624,0.40046,89612.0,89611.0,0.13840881]
[1765000232526,0.0316178,89607.0,89606.0,0.08026881]
[1765000232720,0.02046,89606.0,89605.0,0.10851881]
[1765000232920,0.41046,89606.0,89605.0,0.10851881]
[1765000234023,0.41046,89606.0,89605.0,0.02825]
[1765000234619,0.41146,89606.0,89605.0,0.02825]
[1765000234924,0.41646,89606.0,89605.0,0.02825]
[1765000235315,0.41546,89606.0,89605.0,0.02825]
[1765000235626,0.41646,89606.0,89605.0,0.05814]
[1765000238423,0.0316185,89601.0,89600.0,0.02825]
[1765000238724,0.031619,89597.0,89596.0,0.07563]
[1765000238929,0.411619,89597.0,89596.0,0.05814]
[1765000240532,0.411619,89597.0,89596.0,0.07563]
[1765000241530,0.412619,89597.0,89596.0,0.07563]
[1765000241918,0.416619,89597.0,89596.0,0.07563]
[1765000248335,0.412619,89597.0,89596.0,0.07563]
[1765000248531,0.416619,89597.0,89596.0,0.07563]
[1765000249431,0.415619,89597.0,89596.0,0.07563]
[1765000249632,0.416619,89597.0,89596.0,0.07563]
[1765000250229,0.415619,89597.0,89596.0,0.07563]
[1765000250438,0.416619,89597.0,89596.0,0.07563]
[1765000254145,0.40546,89597.0,89596.0,0.07563]
[1765000262640,0.02046,89596.0,89595.0,0.08026881]
[1765000262847,0.0316193,89595.0,89594.0,0.0287]
[1765000263050,0.4216193,89595.0,89594.0,0.0287]
[1765000263350,0.4216193,89595.0,89594.0,0.10896881]
[1765000263542,0.4216193,89595.0,89594.0,0.13785881]
[1765000263744,0.4216193,89595.0,89594.0,0.10896881]
[1765000264251,0.4216193,89595.0,89594.0,0.13785881]
[1765000264843,0.4236193,89595.0,89594.0,0.13785881]
[1765000266149,0.4236193,89595.0,89594.0,0.05759]
[1765000266747,0.41246,89595.0,89594.0,0.05759]
[1765000268449,0.002,89595.0,89594.0,0.05759]
[1765000271259,0.02062745,89604.0,89603.0,0.05759]
[1765000271461,0.12062745,89604.0,89603.0,0.05759]
[1765000271660,0.45062745,89604.0,89603.0,0.05759]
[1765000272762,0.45162745,89604.0,89603.0,0.05759]
[1765000277361,0.15139745,89604.0,89603.0,0.05759]
[1765000277764,0.16162745,89604.0,89603.0,0.05759]
[1765000278368,0.38162745,89604.0,89603.0,0.05759]
[1765000280771,0.0316159,89623.0,89622.0,0.07545]
[1765000281067,0.37046,89623.0,89622.0,0.07545]
[1765000281965,0.37146,89623.0,89622.0,0.07545]
[1765000282259,0.02646,89623.0,89622.0,0.07545]
[1765000282461,0.01623,89623.0,89622.0,0.07545]
[1765000282664,0.01223,89623.0,89622.0,0.07545]
[1765000282865,0.02246,89623.0,89622.0,0.07545]
[1765000284168,0.02046,89623.0,89622.0,0.07545]
[1765000284368,0.02146,89623.0,89622.0,0.07545]
[1765000284760,0.001,89623.0,89622.0,0.07545]
[1765000284966,0.00016745,89631.0,89630.0,0.0687449]
[1765000285277,0.43016745,89631.0,89630.0,0.07116492]
[1765000287568,0.00416745,89631.0,89630.0,0.07116492]
[1765000288258,0.00016745,89631.0,89630.0,0.07216492]
[1765000288858,0.02073888,89646.0,89645.0,0.05759]
[1765000289055,0.32073888,89646.0,89645.0,0.05759]
[1765000290566,0.32173888,89646.0,89645.0,0.05759]
[1765000291358,0.32573888,89646.0,89645.0,0.05759]
[1765000292563,0.32473888,89646.0,89645.0,0.05759]
[1765000294670,0.32373888,89646.0,89645.0,0.05759]
[1765000294862,0.32473888,89646.0,89645.0,0.05759]
[1765000305773,0.02046,89645.0,89644.0,0.01096099]
[1765000305971,0.02046,89638.0,89637.0,0.06803124]
[1765000306188,0.45046,89638.0,89637.0,0.02916734]
[1765000306572,0.45046,89638.0,89637.0,0.05687734]
[1765000306973,0.45046,89638.0,89637.0,0.06789734]
[1765000307174,0.45046,89638.0,89637.0,0.01118734]
[1765000307874,0.45046,89638.0,89637.0,0.00016734]
[1765000309684,0.45546,89638.0,89637.0,0.00016734]
[1765000310176,0.45646,89638.0,89637.0,0.00016734]
[1765000313084,0.45646,89638.0,89631.0,0.01133665]
[1765000313085,0.0316147,89632.0,89631.0,0.01133665]
[1765000313283,0.0316153,89627.0,89621.0,0.0111559]
[1765000313486,0.0316153,89627.0,89621.0,0.0710359]
[1765000313487,0.02046,89622.0,89621.0,0.0710359]
[1765000313687,0.45046,89622.0,89621.0,0.0710359]
[1765000314080,0.45046,89622.0,89621.0,0.08202594]
[1765000316785,0.17046,89622.0,89621.0,0.08202594]
[1765000318789,0.17046,89622.0,89621.0,0.08302594]
[1765000320194,0.33046,89622.0,89621.0,0.08302594]
[1765000320605,0.33046,89622.0,89621.0,0.07187004]
[1765000321792,0.33046,89622.0,89621.0,0.07087004]
[1765000337909,0.33046,89622.0,89621.0,0.04090004]
[1765000338116,0.33046,89622.0,89621.0,0.01099004]
[1765000338410,0.33046,89622.0,89613.0,0.05720734]
[1765000338411,0.02046,89614.0,89613.0,0.05720734]
[1765000338607,0.02046,89614.0,89613.0,0.05962736]
[1765000339206,0.02046,89614.0,89613.0,0.0709373]
[1765000345809,0.39046,89614.0,89613.0,0.0709373]
[1765000350809,0.01023,89614.0,89613.0,0.0709373]
[1765000353818,0.02062734,89630.0,89629.0,0.05545]
[1765000354015,0.40062734,89630.0,89629.0,0.05545]
[1765000354918,0.40162734,89630.0,89629.0,0.05545]
[1765000355218,0.40662734,89630.0,89629.0,0.05545]
[1765000355918,0.40662734,89630.0,89629.0,0.02732]
[1765000357619,0.02046,89626.0,89625.0,0.07251]
[1765000357917,0.43046,89626.0,89625.0,0.07251]
[1765000358720,0.43146,89626.0,89625.0,0.07251]
[1765000358923,0.43546,89626.0,89625.0,0.07251]
[1765000364022,0.005,89626.0,89625.0,0.50251]
[1765000364226,0.00016734,89630.0,89629.0,0.05545]
[1765000364529,0.03046,89644.0,89643.0,0.05545]
[1765000364729,0.40046,89644.0,89643.0,0.05545]
[1765000366226,0.40346,89644.0,89643.0,0.05545]
[1765000367733,0.40046,89644.0,89643.0,0.05545]
[1765000368433,0.40046,89644.0,89643.0,0.05645]
[1765000369134,0.40046,89644.0,89643.0,0.05745]
[1765000370835,0.40046,89644.0,89643.0,0.002]
[1765000371636,0.40546,89644.0,89643.0,0.002]
[1765000371826,0.40546,89644.0,89643.0,0.001]
[1765000372032,0.03046,89636.0,89635.0,0.00016734]
[1765000372222,0.38046,89636.0,89635.0,0.00016734]
[1765000372636,0.38046,89636.0,89635.0,0.00258736]
[1765000373030,0.38046,89636.0,89635.0,0.02990736]
[1765000373638,0.38046,89636.0,89635.0,0.05803736]
[1765000374430,0.38146,89636.0,89635.0,0.05803736]
[1765000374937,0.32146,89636.0,89635.0,0.05803736]
[1765000375138,0.291,89636.0,89635.0,0.05803736]
[1765000375636,0.30623,89636.0,89635.0,0.05803736]
[1765000375836,0.30523,89636.0,89635.0,0.05803736]
[1765000376237,0.32046,89636.0,89635.0,0.05803736]
[1765000377534,0.03073888,89646.0,89645.0,0.07241]
[1765000377841,0.40073888,89646.0,89645.0,0.07241]
[1765000378835,0.40173888,89646.0,89645.0,0.07241]
[1765000385143,0.40173888,89646.0,89645.0,0.05533]
[1765000387745,0.03046,89641.0,89639.0,0.08026894]
[1765000388044,0.03046,89637.0,89636.0,0.10776894]
[1765000388243,0.44046,89637.0,89636.0,0.0275]
[1765000388445,0.44046,89637.0,89636.0,0.05545]
[1765000389139,0.44046,89637.0,89636.0,0.05745]
[1765000390338,0.44046,89637.0,89636.0,0.05845]
[1765000390949,0.44046,89637.0,89636.0,0.05745]
[1765000391640,0.44046,89637.0,89636.0,0.07518]
[1765000393346,0.44046,89637.0,89636.0,0.07418]
[1765000393546,0.44046,89637.0,89636.0,0.07518]
[1765000394552,0.44046,89637.0,89636.0,0.07618]
[1765000396246,0.44046,89637.0,89636.0,0.07518]
[1765000397253,0.44046,89637.0,89636.0,0.07418]
[1765000397447,0.44046,89637.0,89636.0,0.07618]
[1765000398347,0.44046,89637.0,89636.0,0.07418]
[1765000398554,0.44046,89637.0,89636.0,0.07518]
[1765000409860,0.44046,89637.0,89636.0,0.1755448]
[1765000416166,0.44046,89637.0,89636.0,0.07518]
[1765000421170,0.23046,89637.0,89636.0,0.07518]
[1765000421970,0.2,89637.0,89636.0,0.07518]
[1765000422165,0.00027888,89646.0,89636.0,0.07518]
[1765000422365,0.44073888,89646.0,89645.0,0.066883]
[1765000423666,0.03046,89642.0,89641.0,0.0111534]
[1765000423860,0.44046,89642.0,89641.0,0.0111534]
[1765000424470,0.44046,89642.0,89641.0,0.0387134]
[1765000425263,0.44046,89642.0,89641.0,0.0397134]
[1765000426073,0.44046,89642.0,89641.0,0.0678834]
[1765000426578,0.44046,89642.0,89641.0,0.0688834]
[1765000427278,0.44046,89642.0,89641.0,0.0678834]
[1765000428077,0.44046,89642.0,89641.0,0.0668834]
[1765000428680,0.44046,89642.0,89641.0,0.0678834]
[1765000428881,0.44046,89642.0,89641.0,0.0688834]
[1765000429579,0.44046,89642.0,89641.0,0.0678834]
[1765000429881,0.44046,89642.0,89641.0,0.0688834]
[1765000442984,0.44046,89642.0,89641.0,0.0407134]
[1765000443287,0.44046,89642.0,89641.0,0.002]
[1765000444690,0.44046,89642.0,89641.0,0.001]
[1765000445185,0.44146,89642.0,89641.0,0.001]
[1765000445491,0.44146,89642.0,89639.0,0.0111538]
[1765000445492,0.03046,89640.0,89639.0,0.0111538]
[1765000445687,0.03046,89639.0,89638.0,0.10041108]
[1765000445890,0.03046,89637.0,89636.0,0.10041108]
[1765000446091,0.38046,89637.0,89636.0,0.10041108]
[1765000446288,0.35,89637.0,89636.0,0.0111542]
[1765000446489,0.38046,89637.0,89636.0,0.16779528]
[1765000448284,0.38046,89637.0,89636.0,0.16879528]
[1765000448986,0.38046,89637.0,89636.0,0.16979528]
[1765000450692,0.17046,89637.0,89636.0,0.16979528]
[1765000451591,0.17046,89637.0,89636.0,0.0693842]
[1765000451986,0.15523,89637.0,89636.0,0.0693842]
[1765000452898,0.03073888,89646.0,89645.0,0.067383]
[1765000453086,0.46073888,89646.0,89645.0,0.067383]
[1765000454199,0.46173888,89646.0,89645.0,0.067383]
[1765000456501,0.46073888,89646.0,89645.0,0.067383]
[1765000456698,0.46173888,89646.0,89645.0,0.067383]
[1765000479229,0.03046,89642.0,89641.0,0.0676135]
[1765000479518,0.03046,89638.0,89637.0,0.11154444]
[1765000479822,0.43046,89638.0,89637.0,0.11154444]
[1765000480120,0.43046,89638.0,89637.0,0.13969444]
[1765000480631,0.43046,89638.0,89637.0,0.16800444]
[1765000481225,0.43046,89638.0,89637.0,0.17000444]
[1765000482124,0.43046,89638.0,89637.0,0.17100444]
[1765000483423,0.43046,89638.0,89637.0,0.17000444]
[1765000483824,0.43046,89638.0,89637.0,0.069614]
[1765000484928,0.43046,89638.0,89637.0,0.068614]
[1765000485120,0.43046,89638.0,89637.0,0.069614]
[1765000486726,0.43046,89638.0,89637.0,0.085834]
[1765000488326,0.43046,89638.0,89637.0,0.18625079]
[1765000488828,0.43046,89638.0,89637.0,0.085834]
[1765000490929,0.43046,89638.0,89637.0,0.084834]
[1765000491129,0.43046,89638.0,89637.0,0.085834]
[1765000492338,0.05046,89638.0,89637.0,0.18625079]
[1765000495041,0.03523,89638.0,89637.0,0.18625079]
[1765000495241,0.02,89638.0,89637.0,0.18625079]
[1765000498642,0.00027888,89646.0,89637.0,0.18625079]
[1765000498946,0.39073888,89646.0,89645.0,0.06811302]
[1765000500747,0.39173888,89646.0,89645.0,0.06811302]
[1765000502142,0.39073888,89646.0,89645.0,0.06811302]
[1765000502343,0.03046,89642.0,89641.0,0.0111535]
[1765000502644,0.03046,89638.0,89637.0,0.0111539]
[1765000502846,0.38046,89638.0,89637.0,0.0111539]
[1765000504149,0.38046,89638.0,89637.0,0.0131539]
[1765000504753,0.38046,89638.0,89637.0,0.0111539]
[1765000505054,0.38046,89638.0,89635.0,0.02895734]
[1765000505055,0.03046,89636.0,89635.0,0.02895734]
[1765000505255,0.42046,89636.0,89635.0,0.00016734]
[1765000506054,0.42146,89636.0,89635.0,0.00016734]
[1765000506955,0.42146,89636.0,89635.0,0.00258736]
[1765000507154,0.42146,89636.0,89635.0,0.06109736]
[1765000507854,0.08623,89636.0,89635.0,0.06109736]
[1765000508049,0.10146,89636.0,89635.0,0.06109736]
[1765000509055,0.10046,89636.0,89635.0,0.06109736]
[1765000509756,0.10146,89636.0,89635.0,0.06109736]
[1765000510356,0.071,89636.0,89635.0,0.06109736]
[1765000510752,0.42146,89636.0,89635.0,0.06109736]
[1765000511257,0.42046,89636.0,89635.0,0.06309736]
[1765000511459,0.42046,89636.0,89635.0,0.06409736]
[1765000512054,0.42046,89636.0,89635.0,0.06309736]
[1765000512248,0.42046,89636.0,89635.0,0.06409736]
[1765000512454,0.16046,89636.0,89635.0,0.06409736]
[1765000514060,0.03046,89636.0,89635.0,0.06409736]
[1765000516260,0.01523,89636.0,89635.0,0.06409736]
[1765000521965,0.03073888,89646.0,89645.0,0.05851]
[1765000522159,0.39073888,89646.0,89645.0,0.05851]
[1765000522766,0.01550888,89646.0,89645.0,0.069663]
[1765000522966,0.00027888,89646.0,89645.0,0.069663]
[1765000523661,0.00127888,89646.0,89645.0,0.069663]
[1765000523858,0.00127888,89646.0,89645.0,0.14992876]
[1765000524566,0.00127888,89646.0,89645.0,0.069663]
[1765000532366,0.00016734,89652.0,89651.0,0.0671223]
[1765000532572,0.00016734,89652.0,89651.0,0.48954232]
[1765000533556,0.00116734,89652.0,89651.0,0.48954232]
[1765000533760,0.00116734,89652.0,89651.0,0.58970107]
[1765000535272,0.00116734,89652.0,89651.0,0.48954232]
[1765000535972,0.0338,89670.0,89669.0,0.06712]
[1765000536172,0.4238,89670.0,89669.0,0.06712]
[1765000536967,0.4238,89670.0,89669.0,0.07843606]
[1765000537161,0.4258,89670.0,89669.0,0.07843606]
[1765000540278,0.0338,89662.0,89661.0,0.06728834]
[1765000540477,0.4238,89662.0,89661.0,0.06970836]
[1765000540973,0.4238,89662.0,89661.0,0.0808365]
[1765000541870,0.1348,89662.0,89661.0,0.0808365]
[1765000543069,0.0348,89662.0,89661.0,0.0808365]
[1765000543263,0.001,89662.0,89661.0,0.0808365]
[1765000545976,0.00016734,89678.0,89677.0,0.02856]
[1765000546177,0.40396734,89678.0,89677.0,0.02856]
[1765000546574,0.40396734,89678.0,89677.0,0.05597]
[1765000548573,0.40496734,89678.0,89677.0,0.05597]
[1765000550074,0.40496734,89678.0,89674.0,0.0111494]
[1765000550271,0.0338,89675.0,89674.0,0.0397094]
[1765000550472,0.3938,89675.0,89674.0,0.0397094]
[1765000550975,0.3938,89675.0,89674.0,0.0671194]
[1765000552182,0.3948,89675.0,89674.0,0.0671194]
[1765000553475,0.1248,89675.0,89674.0,0.0671194]
[1765000557291,0.3848,89675.0,89674.0,0.0671194]
[1765000557584,0.3848,89675.0,89674.0,0.05597]
[1765000558981,0.0348,89675.0,89674.0,0.05597]
[1765000560190,0.0348,89675.0,89674.0,0.1360555]
[1765000560494,0.001,89675.0,89674.0,0.1360555]
[1765000561083,0.00083255,89675.0,89674.0,0.43597]
[1765000562186,0.00083255,89675.0,89674.0,0.07597]
[1765000562386,0.00083255,89675.0,89674.0,0.05597]
[1765000563288,0.01773255,89675.0,89674.0,0.05597]
[1765000567582,0.03463255,89675.0,89674.0,0.05597]
[1765000567983,0.44463255,89675.0,89674.0,0.13607884]
[1765000568182,0.44463255,89675.0,89674.0,0.05597]
[1765000582309,0.44463255,89675.0,89674.0,0.13607884]
[1765000582803,0.44463255,89675.0,89674.0,0.05597]
[1765000586207,0.44463255,89675.0,89674.0,0.13607884]
[1765000590294,0.44463255,89675.0,89674.0,0.08010884]
[1765000590498,0.44463255,89675.0,89672.0,0.08010884]
[1765000590499,0.0338,89673.0,89672.0,0.08010884]
[1765000590700,0.0338,89670.0,89669.0,0.08010884]
[1765000590905,0.3938,89670.0,89669.0,0.08010884]
[1765000591600,0.0338,89667.0,89666.0,0.08010884]
[1765000591904,0.0338,89666.0,89665.0,0.08010884]
[1765000592094,0.4238,89666.0,89665.0,0.08010884]
[1765000593406,0.4238,89666.0,89665.0,0.08210884]
[1765000593807,0.4238,89666.0,89665.0,0.08010884]
[1765000594704,0.4248,89666.0,89664.0,0.08010884]
[1765000594905,0.0338,89665.0,89664.0,0.08010884]
[1765000595202,0.4238,89665.0,89664.0,0.08010884]
[1765000595409,0.0338,89664.0,89663.0,0.09125964]
[1765000595707,0.4138,89664.0,89663.0,0.11896964]
[1765000597107,0.4138,89664.0,89663.0,0.10781884]
[1765000597408,0.4148,89664.0,89663.0,0.10781884]
[1765000598008,0.4138,89664.0,89663.0,0.10781884]
[1765000598309,0.4148,89664.0,89663.0,0.10781884]
[1765000598510,0.4148,89664.0,89663.0,0.13482884]
[1765000611123,0.4148,89664.0,89663.0,0.08010884]
[1765000611316,0.0449508,89663.0,89662.0,0.08010884]
[1765000611509,0.4449508,89663.0,89662.0,0.10781884]
[1765000612120,0.4449508,89663.0,89662.0,0.13482884]
[1765000612422,0.4459508,89663.0,89662.0,0.05472]
[1765000613817,0.4348,89663.0,89662.0,0.13492032]
[1765000614217,0.4348,89663.0,89662.0,0.05472]
[1765000614612,0.001,89663.0,89662.0,0.05472]
[1765000616022,0.0179,89663.0,89662.0,0.05472]
[1765000616220,0.0348,89663.0,89662.0,0.05472]
[1765000620028,0.001,89663.0,89662.0,0.05472]
[1765000621822,0.0179,89663.0,89662.0,0.05472]
[1765000624230,0.0348,89663.0,89662.0,0.05472]
[1765000624432,0.3948,89663.0,89662.0,0.05472]
[1765000625328,0.3948,89663.0,89662.0,0.02771]
[1765000625531,0.0338,89662.0,89661.0,0.01129548]
[1765000625725,0.3938,89662.0,89661.0,0.00016734]
[1765000627432,0.3948,89662.0,89661.0,0.00016734]
[1765000635848,0.0449523,89651.0,89650.0,0.02782]
[1765000636146,0.0449523,89651.0,89650.0,0.05732]
[1765000636147,0.4049523,89651.0,89650.0,0.05732]
[1765000636744,0.4049523,89651.0,89650.0,0.06831968]
[1765000637147,0.4049523,89651.0,89650.0,0.07031968]
[1765000637750,0.4049523,89651.0,89650.0,0.06931968]
[1765000638050,0.4049523,89651.0,89650.0,0.06831968]
[1765000638051,0.4059523,89651.0,89650.0,0.06831968]
[1765000643752,0.4049523,89651.0,89650.0,0.06831968]
[1765000644552,0.4059523,89651.0,89650.0,0.06831968]
[1765000645354,0.4049523,89651.0,89650.0,0.06831968]
[1765000654957,0.3938,89651.0,89650.0,0.06831968]
[1765000661262,0.1038,89651.0,89650.0,0.06831968]
[1765000662568,0.1038,89651.0,89650.0,0.14861453]
[1765000662766,0.1038,89651.0,89650.0,0.06831968]
[1765000664963,0.4138,89651.0,89650.0,0.06831968]
[1765000670768,0.2038,89651.0,89650.0,0.06831968]
[1765000679288,0.2038,89651.0,89650.0,0.08471968]
[1765000679490,0.3938,89651.0,89650.0,0.08471968]
[1765000685000,0.3769,89651.0,89650.0,0.08471968]
[1765000685395,0.3938,89651.0,89650.0,0.08471968]
[1765000689704,0.3938,89651.0,89650.0,0.06831968]
[1765000690302,0.3938,89651.0,89650.0,0.01099968]
[1765000690500,0.3938,89651.0,89644.0,0.11767875]
[1765000690501,0.0338,89645.0,89644.0,0.17461875]
[1765000690806,0.4138,89645.0,89644.0,0.1857917]
[1765000691906,0.4138,89645.0,89644.0,0.1877917]
[1765000692503,0.4138,89645.0,89644.0,0.1887917]
[1765000692810,0.3538,89645.0,89644.0,0.1887917]
[1765000692999,0.3538,89645.0,89644.0,0.1877917]
[1765000693199,0.3538,89645.0,89644.0,0.18804439]
[1765000693406,0.3538,89645.0,89644.0,0.08763295]
[1765000693907,0.1138,89645.0,89644.0,0.08763295]
[1765000694107,0.1138,89645.0,89644.0,0.08663295]
[1765000694309,0.1138,89645.0,89644.0,0.18804322]
[1765000694908,0.1138,89645.0,89644.0,0.18904322]
[1765000695097,0.4538,89645.0,89644.0,0.18904322]
[1765000701403,0.4538,89645.0,89644.0,0.18704322]
[1765000702011,0.4538,89645.0,89644.0,0.18804322]
[1765000711917,0.4369,89645.0,89644.0,0.18804322]
[1765000712313,0.0169,89645.0,89644.0,0.18804322]
[1765000712521,0.1369,89645.0,89644.0,0.18804322]
[1765000713019,0.1538,89645.0,89644.0,0.18804322]
[1765000713425,0.1369,89645.0,89644.0,0.18804322]
[1765000714218,0.1538,89645.0,89644.0,0.18804322]
[1765000715214,0.12,89645.0,89644.0,0.18804322]
[1765000715820,0.1369,89645.0,89644.0,0.18804322]
[1765000716021,0.1538,89645.0,89644.0,0.18804322]
[1765000716524,0.4638,89645.0,89644.0,0.18804322]
[1765000724524,0.1838,89645.0,89644.0,0.18804322]
[1765000724724,0.05,89645.0,89644.0,0.18804322]
[1765000725420,0.0669,89645.0,89644.0,0.18804322]
[1765000725928,0.0838,89645.0,89644.0,0.18804322]
[1765000728129,0.4138,89645.0,89644.0,0.18804322]
[1765000744242,0.4138,89645.0,89644.0,0.08763295]
[1765000744543,0.4138,89645.0,89644.0,0.07011295]
[1765000747339,0.4148,89645.0,89644.0,0.06811295]
[1765000749145,0.4138,89645.0,89644.0,0.06811295]
[1765000749345,0.4148,89645.0,89644.0,0.06811295]
[1765000752045,0.425953,89645.0,89644.0,0.06811295]
[1765000752747,0.425953,89645.0,89644.0,0.04015295]
[1765000753146,0.425953,89645.0,89644.0,0.06993295]
[1765000753651,0.425953,89645.0,89644.0,0.01117295]
[1765000753852,0.0338,89643.0,89642.0,0.02990734]
[1765000754052,0.4538,89643.0,89642.0,0.05968734]
[1765000754252,0.4538,89643.0,89642.0,0.01115187]
[1765000754747,0.4538,89643.0,89642.0,0.04089187]
[1765000754952,0.4538,89643.0,89642.0,0.07067187]
[1765000757056,0.4548,89643.0,89642.0,0.07067187]
[1765000770280,0.4548,89643.0,89642.0,0.15094036]
[1765000777187,0.4548,89643.0,89642.0,0.07067187]
[1765000777987,0.4548,89643.0,89642.0,0.08779187]
[1765000780991,0.4538,89643.0,89642.0,0.08779187]
[1765000781191,0.4548,89643.0,89642.0,0.08779187]
[1765000781790,0.4538,89643.0,89642.0,0.08779187]
[1765000782089,0.4548,89643.0,89642.0,0.08779187]
[1765000804804,0.4548,89643.0,89642.0,0.01115187]
[1765000805006,0.4548,89643.0,89628.0,0.01744]
[1765000805007,0.0338,89635.0,89634.0,0.10041027]
[1765000805216,0.0338,89631.0,89630.0,0.15933027]
[1765000805399,0.4138,89631.0,89630.0,0.07027674]
[1765000806306,0.4138,89631.0,89630.0,0.01135674]
[1765000806505,0.0338,89625.0,89624.0,0.17677027]
[1765000806699,0.4438,89625.0,89624.0,0.17677027]
[1765000806901,0.4438,89625.0,89624.0,0.11186316]
[1765000807200,0.4438,89625.0,89624.0,0.01145289]
[1765000807507,0.4438,89625.0,89622.0,0.00016734]
[1765000807508,0.0338,89623.0,89622.0,0.00016734]
[1765000807710,0.0449564,89618.0,89611.0,0.09147191]
[1765000807909,0.0449571,89612.0,89611.0,0.09147191]
[1765000808209,0.4549571,89612.0,89611.0,0.01117003]
[1765000808412,0.0338,89609.0,89608.0,0.07636]
[1765000808606,0.3938,89609.0,89608.0,0.07636]
[1765000808807,0.39390049,89609.0,89608.0,0.08729981]
[1765000811207,0.39490049,89609.0,89608.0,0.08729981]
[1765000844343,0.39490049,89609.0,89608.0,0.07636]
[1765000844646,0.39490049,89609.0,89608.0,0.08959234]
[1765000857868,0.39490049,89609.0,89608.0,0.07636]
[1765000858169,0.39490049,89609.0,89606.0,0.017719]
[1765000858170,0.0338,89607.0,89606.0,0.000279]
[1765000858361,0.0338,89602.0,89601.0,0.08030188]
[1765000858558,0.0449585,89601.0,89600.0,0.09347585]
[1765000858758,0.4249585,89601.0,89600.0,0.09347585]
[1765000860266,0.4249585,89601.0,89600.0,0.09447585]
[1765000860463,0.4249585,89601.0,89600.0,0.08230188]
[1765000860664,0.4249585,89601.0,89600.0,0.002]
[1765000861974,0.4259585,89601.0,89598.0,0.01324591]
[1765000862271,0.0338,89597.0,89596.0,0.08030188]
[1765000862573,0.4538,89597.0,89596.0,0.08030188]
[1765000863073,0.0449598,89591.0,89590.0,0.0553]
[1765000863368,0.4649598,89591.0,89590.0,0.0553]
[1765000863775,0.4649598,89591.0,89590.0,0.06851397]